Workbook

Sheet 1 Year Worksheet
A1: Southern Illinois University School of Medicine
A2: PI:
A3: App Title:
A4: Agency:
C5: Deadline:
A7: PROJECT DATES: | F7: Year 1 | H7: Total Project Costs
A8: Personnel - List all SIU SOM employees with effort on this project. Future year salary increases modified by inflation factor (3%).
A9: Name | D9: % Effort | E9: Academic Base Salary | F9: Salary Requested | G9: Fringes @ 48.4%
F10: =IF(E10>221899.99,(221900*D10),D10*E10) -> $0 | G10: =F10*0.484 -> $0 | H10: =SUM(F10:G10) -> $0
F11: $0 | G11: =F11*0.484 -> $0 | H11: $0
F12: $0 | G12: =F12*0.484 -> $0 | H12: $0
F13: $0 | G13: =F13*0.484 -> $0 | H13: $0
A14: POST DOC - 37.5% fringe rate | F14: $0 | G14: =F14*0.375 -> $0 | H14: $0
A15: GRADUATE STUDENT - 50% FTE | F15: $0 | G15: =IF(F15>0,366,0) -> $0 | H15: $0
A16: Subtotal Personnel | F16: =SUM(F10:F15) -> $0 | G16: =SUM(G10:G15) -> $0
A17: Total Salary + Fringes | F17: =F16+G16 -> $0 | H17: =SUM(H10:H15) -> $0 | I17: =F16+G16 -> $0
A18: Supplies/Commodities
H19: =F19 -> $0
H20: $0
H21: $0
H22: $0
A23: Subtotal Supplies | H23: =SUM(H19:H22) -> $0
A24: Equipment
H25: =F25 -> $0
H26: =F26 -> $0
A27: Subtotal Equipment | H27: =SUM(H25:H26) -> $0
A28: Travel - list personnel, purpose, destination, and categorical cost calculation
H29: =F29 -> $0
H30: =F30 -> $0
H31: =F31 -> $0
A32: Subtotal Travel | H32: =SUM(H29:H31) -> $0
A33: Contractual - for example: core facility costs, publication
H34: =F34 -> $0
H35: =F35 -> $0
H36: $0
H37: =F37 -> $0
H38: =F38 -> $0
A39: Subtotal Contractual | H39: =SUM(H34:H38) -> $0
A40: Other Costs
H41: =F41 -> $0
H42: =F42 -> $0
A43: Subtotal Other Costs | H43: =SUM(H41:H42) -> $0
A44: Total Direct Costs | H44: =H17+H23+H27+H32+H39+H43 -> $0
A45: Modified Total Direct Costs (MTDC)* | H45: =H17+H23+H32+H39+H43 -> $0
A46: Indirects | E46: 48.50% | H46: =H45*E46 -> $0
A47: Total Budget Request | H47: =H44+H46 -> $0
A49: Contact grants@siumed.edu for assistance or questions.
A51: Federal Budget Notes:
A52: 1) NIH Executive Level II salary cap = $221,900 as of January 1, 2024.
A54: 2) The applicant should not include the consortium partner Indirect Costs (IDC) associated in calculating the $250,000 direct cost level for modular budget eligibility. Consortium IDC may be requested above the normal $250,000 direct cost limits.
A60: Last Updated: 2/23/2024

Sheet 1 Year with Subcontract
A1: Southern Illinois University School of Medicine
A2: PI:
A3: Title:
A4: Agency:
C5: Deadline:
A7: PROJECT DATES: | F7: Year 1 | H7: Total Project Costs
A8: Personnel - List all SIU SOM employees with effort on this project. Future year salary increases modified by inflation factor (3%).
A9: Name | D9: % Effort | E9: Academic Base Salary | F9: Salary Requested | G9: Fringes @ 48.4%
F10: =IF(E10>221899.99,(221900*D10),D10*E10) -> $0 | G10: =F10*0.484 -> $0 | H10: =SUM(F10:G10) -> $0
F11: $0 | G11: =F11*0.484 -> $0 | H11: $0
F12: $0 | G12: =F12*0.484 -> $0 | H12: $0
F13: $0 | G13: =F13*0.484 -> $0 | H13: $0
A14: POST DOC - 37.5% fringe rate | F14: $0 | G14: =F14*0.375 -> $0 | H14: $0
A15: GRADUATE STUDENT - 50% FTE | F15: $0 | G15: =IF(F15>0,366,0) -> $0 | H15: $0
A16: Subtotal Personnel | F16: =SUM(F10:F15) -> $0 | G16: =SUM(G10:G15) -> $0
A17: Total Salary + Fringes | F17: =F16+G16 -> $0 | H17: =SUM(H10:H15) -> $0
A18: Supplies/Commodities
H19: =F19 -> $0
H20: $0
H21: $0
H22: $0
H23: $0
A24: Subtotal Supplies | H24: =SUM(H19:H23) -> $0
A25: Equipment
H26: =F26 -> $0
H27: =F27 -> $0
A28: Subtotal Equipment | H28: =SUM(H26:H27) -> $0
A29: Travel - list personnel, purpose, destination, and categorical cost calculation
H30: =F30 -> $0
H31: =F31 -> $0
H32: =F32 -> $0
A33: Subtotal Travel | H33: =SUM(H30:H32) -> $0
A34: Contractual - for example: core facility costs, publication
H35: =F35 -> $0
H36: =F36 -> $0
H37: =F37 -> $0
H38: =F38 -> $0
A39: Subtotal Contractual | H39: =SUM(H35:H38) -> $0
A40: Consortium/Subcontract Costs - List each subcontractor separately.
A41: Consortia 1: | C41: Consortia 1 Direct Costs | H41: =SUM(F41:G41) -> $0
A42: Organization | C42: Consortia 1 Indirect Costs | H42: =SUM(F42:G42) -> $0
C43: Consortia 1 Total | F43: =SUM(F41:G42) -> $0 | H43: =H41+H42 -> $0
C44: MTDC Calculation | F44: =IF(F43>25000,25000,F43) -> $0 | H44: =F44 -> $0
A45: Consortia 2: | C45: Consortia 2 Direct Costs | H45: =SUM(F45:G45) -> $0
A46: Organization | C46: Consortia 2 Indirect Costs | H46: =SUM(F46:G46) -> $0
C47: Consortia 2 Total | F47: =SUM(F45:G46) -> $0 | H47: =SUM(H45:H46) -> $0
C48: MTDC Calculation | F48: =IF(F47>25000,25000,F47) -> $0 | H48: =SUM(H45:H46) -> $0
A49: Subtotal Consortium/Subcontract | F49: =F43+F47 -> $0 | H49: =H43+H47 -> $0
A50: MTDC Calculation | F50: =F44+F48 -> $0 | H50: =H44+H48 -> $0
A51: Other Costs
H52: =F52 -> $0
H53: =F53 -> $0
A54: Subtotal Other Costs | H54: =SUM(H52:H53) -> $0
A55: Total Direct Costs | H55: =H17+H24+H28+H33+H39+H49+H54 -> $0
A56: Total Direct Costs less Consortium F&A | H56: =H17+H24+H28+H33+H39+H41+H45+H54 -> $0
A57: Modified Total Direct Costs (MTDC)* | H57: =H17+H24+H33+H39+H50+H54 -> $0
A58: Indirects | E58: 48.50% | H58: =H57*E58 -> $0
A59: Total Budget Request | H59: =H55+H58 -> $0
A61: Contact grants@siumed.edu for assistance or questions.
A63: Federal Budget Notes:
A64: 1) NIH Executive Level II salary cap = $221,900 as of January 1, 2024.
A66: 2) The applicant should not include the consortium partner Indirect Costs (IDC) associated in calculating the $250,000 direct cost level for modular budget eligibility. Consortium IDC may be requested above the normal $250,000 direct cost limits.
A72: Last Updated: 2/23/2024

Sheet 2 Year Worksheet
A1: Southern Illinois University School of Medicine
A2: PI:
A3: App Title:
A4: Agency:
C5: Deadline:
F7: Year 1 | H7: Year 2 | J7: Total Project Costs
A8: Personnel - List all SIU SOM employees with effort on this project. Future year salary increases modified by inflation factor (3%).
A9: Name | D9: % Effort | E9: Academic Base Salary | F9: Salary Requested | G9: Fringes @ 48.4% | H9: Salary Requested | I9: Fringes @ 48.4%
F10: =IF(E10>221899.99,(221900*D10),D10*E10) -> $0 | G10: =F10*0.484 -> $0 | H10: =IF(E10>221899.99,F10,IF(E10*1.03>221899.99,(221900*D10),F10*1.03)) -> $0 | I10: =H10*0.484 -> $0 | J10: =SUM(F10:I10) -> $0
F11: $0 | G11: =F11*0.484 -> $0 | H11: $0 | I11: =H11*0.484 -> $0 | J11: =SUM(F11:I11) -> $0
F12: $0 | G12: =F12*0.484 -> $0 | H12: $0 | I12: =H12*0.484 -> $0 | J12: $0
F13: $0 | G13: =F13*0.484 -> $0 | H13: $0 | I13: =H13*0.484 -> $0 | J13: $0
A14: POST DOC - 37.5% fringe rate | F14: $0 | G14: =F14*0.375 -> $0 | H14: $0 | I14: =H14*0.375 -> $0 | J14: $0
A15: GRADUATE STUDENT - 50% FTE | F15: $0 | G15: =IF(F15>0,366,0) -> $0 | H15: $0 | I15: =IF(F15>0,376,0) -> $0 | J15: $0
A16: Subtotal Personnel | F16: =SUM(F10:F15) -> $0 | G16: =SUM(G10:G15) -> $0 | H16: =SUM(H10:H15) -> $0 | I16: =SUM(I10:I15) -> $0
A17: Total Salary + Fringes | F17: =F16+G16 -> $0 | H17: =H16+I16 -> $0 | J17: =SUM(J10:J15) -> $0 | K17: =F17+H17 -> $0
A18: Supplies/Commodities
J19: =SUM(F19:I19) -> $0
J20: $0
J21: $0
J22: $0
J23: $0
A24: Subtotal Supplies | F24: =SUM(F19:G23) -> $0 | H24: =SUM(H19:I23) -> $0 | J24: =SUM(F24:I24) -> $0 | K24: =SUM(J19:J23) -> $0
A25: Equipment
J26: =SUM(F26:I26) -> $0
J27: =SUM(F27:I27) -> $0
A28: Subtotal Equipment | F28: =SUM(F26:G27) -> $0 | H28: =SUM(H26:I27) -> $0 | J28: =SUM(J26:J27) -> $0 | K28: =F28+H28 -> $0
A29: Travel - list personnel, purpose, destination, and categorical cost calculation
J30: =SUM(F30:I30) -> $0
J31: =SUM(F31:I31) -> $0
J32: =SUM(F32:I32) -> $0
A33: Subtotal Travel | F33: =SUM(F30:G32) -> $0 | H33: =SUM(H30:I32) -> $0 | J33: =SUM(J30:J32) -> $0 | K33: =F33+H33 -> $0
A34: Contractual - for example: core facility costs, publication
J35: =SUM(F35:I35) -> $0
J36: =SUM(F36:I36) -> $0
J37: =SUM(F37:I37) -> $0
J38: =SUM(F38:I38) -> $0
A39: Subtotal Contractual | F39: =SUM(F34:G38) -> $0 | H39: =SUM(H34:I38) -> $0 | J39: =SUM(F39:I39) -> $0 | K39: =F39+H39 -> $0
A40: Consortium/Subcontract Costs - List each subcontractor separately.
A41: Consortia 1: | C41: Consortia 1 Direct Costs | J41: =SUM(F41:I41) -> $0
A42: Organization | C42: Consortia 1 Indirect Costs | J42: $0
C43: Consortia 1 Total | F43: =SUM(F41:G42) -> $0 | H43: =SUM(H41:I42) -> $0 | J43: $0 | K43: =J41+J42 -> $0
C44: MTDC Calculation | F44: =IF(F43>25000,25000,F43) -> $0 | H44: =IF(F43+H43<25000,H43,IF((25000-F43)<0,0,25000-F43)) -> $0 | J44: $0
A45: Consortia 2: | C45: Consortia 2 Direct Costs | J45: $0
A46: Organization | C46: Consortia 2 Indirect Costs | J46: $0
C47: Consortia 2 Total | F47: =SUM(F45:G46) -> $0 | H47: =SUM(H45:I46) -> $0 | J47: $0 | K47: =J46+J45 -> $0
C48: MTDC Calculation | F48: =IF(F47>25000,25000,F47) -> $0 | H48: =IF(F47+H47<25000,H47,IF((25000-F47)<0,0,25000-F47)) -> $0 | J48: $0
A49: Consortia 3: | C49: Consortia 3 Direct Costs | J49: $0
A50: Organization | C50: Consortia 3 Indirect Costs | J50: $0
C51: Consortia 3 Total | F51: =SUM(F49:G50) -> $0 | H51: =SUM(H49:I50) -> $0 | J51: $0 | K51: =J49+J50 -> $0
C52: MTDC Calculation | F52: =IF(F51>25000,25000,F51) -> $0 | H52: =IF(F51+H51<25000,H51,IF((25000-F51)<0,0,25000-F51)) -> $0 | J52: $0
A53: Subtotal Consortium/Subcontract | F53: =F43+F47+F51 -> $0 | H53: =H43+H47+H51 -> $0 | J53: =J43+J47+J51 -> $0 | K53: =SUM(B53:I53) -> $0
A54: MTDC Calculation | F54: =F44+F48+F52 -> $0 | H54: =H44+H48+H52 -> $0 | J54: =SUM(F54:I54) -> $0 | K54: =J44+J48+J52 -> $0
A55: Other Costs
J56: =SUM(F56:I56) -> $0
J57: =SUM(F57:I57) -> $0
A58: Subtotal Other Costs | F58: =SUM(F56:G57) -> $0 | H58: =SUM(H56:I57) -> $0 | J58: =SUM(J56:J57) -> $0 | K58: =SUM(F58:I58) -> $0
A59: Total Direct Costs | F59: =F17+F24+F28+F33+F39+F58+F53 -> $0 | H59: =H17+H24+H28+H33+H39+H58+H53 -> $0 | J59: =F59+H59 -> $0 | K59: =J58+J39+J33+J28+J24+J17+J53 -> $0
B60: Total Direct Costs less Consortium IDC² | F60: =F59-F46-F42-F50 -> $0 | H60: =H59-H46-H42-H50 -> $0 | J60: =J59-J42-J46-J50 -> $0 | K60: =SUM(F60:I60) -> $0
A61: Modified Total Direct Costs (MTDC) | F61: =F58+F54+F39+F33+F24+F17 -> $0 | H61: =H58+H54+H39+H33+H24+H17 -> $0 | J61: =J58+J54+J39+J33+J24+J17 -> $0 | K61: =SUM(F61:I61) -> $0
A62: Indirects | E62: 48.50% | F62: =F61*E62 -> $0 | H62: =H61*E62 -> $0 | J62: =J61*E62 -> $0 | K62: =SUM(F62:I62) -> $0
A63: Total Budget Request | F63: =F59+F62 -> $0 | H63: =H59+H62 -> $0 | J63: =SUM(F63:I63) -> $0 | K63: =J59+J62 -> $0
A65: Contact grants@siumed.edu for assistance or questions.
A67: Federal Budget Notes:
A68: 1) NIH Executive Level II salary cap = $221,900 as of January 1, 2024.
A70: 2) The applicant should not include the consortium partner Indirect Costs (IDC) associated in calculating the $250,000 direct cost level for modular budget eligibility. Consortium IDC may be requested above the normal $250,000 direct cost limits.
A76: Last Updated: 2/23/2024

Sheet 3 Year Worksheet
A1: Southern Illinois University School of Medicine
A2: PI:
A3: App Title:
A4: Agency:
C5: Deadline:
F7: Year 1 | H7: Year 2 | J7: Year 3 | L7: Total Project Costs
A8: Personnel - List all SIU SOM employees with effort on this project. Future year salary increases modified by inflation factor (3%).
A9: Name | D9: % Effort | E9: Academic Base Salary | F9: Salary Requested | G9: Fringes @ 48.4% | H9: Salary Requested | I9: Fringes @ 48.4% | J9: Salary Requested | K9: Fringes @ 48.4%
F10: =IF(E10>221899.99,(221900*D10),D10*E10) -> $0 | G10: =F10*0.484 -> $0 | H10: =IF(E10>221899.99,F10,IF(E10*1.03>221899.99,(221900*D10),F10*1.03)) -> $0 | I10: =H10*0.484 -> $0 | J10: =IF(E10>221899.99,F10,IF((E10*1.03*1.03)>221899.99,(221900*D10),H10*1.03)) -> $0 | K10: =J10*0.484 -> $0 | L10: =SUM(F10:K10) -> $0
F11: $0 | G11: =F11*0.484 -> $0 | H11: $0 | I11: =H11*0.484 -> $0 | J11: $0 | K11: =J11*0.484 -> $0 | L11: =SUM(F11:K11) -> $0
F12: $0 | G12: =F12*0.484 -> $0 | H12: $0 | I12: =H12*0.484 -> $0 | J12: $0 | K12: =J12*0.484 -> $0 | L12: $0
F13: $0 | G13: =F13*0.484 -> $0 | H13: $0 | I13: =H13*0.484 -> $0 | J13: $0 | K13: =J13*0.484 -> $0 | L13: $0
A14: POST DOC - 37.5% fringe rate | F14: $0 | G14: =F14*0.375 -> $0 | H14: $0 | I14: =H14*0.375 -> $0 | J14: $0 | K14: =J14*0.375 -> $0 | L14: $0
A15: GRADUATE STUDENT - 50% FTE | F15: $0 | G15: =IF(F15>0,366,0) -> $0 | H15: $0 | I15: =IF(F15>0,376,0) -> $0 | J15: $0 | K15: =IF(H15>0,386,0) -> $0 | L15: $0
A16: Subtotal Personnel | F16: =SUM(F10:F15) -> $0 | G16: $0 | H16: $0 | I16: $0 | J16: $0 | K16: $0
A17: Total Salary + Fringes | F17: =F16+G16 -> $0 | H17: =H16+I16 -> $0 | J17: =J16+K16 -> $0 | L17: =SUM(L10:L15) -> $0 | M17: =F17+H17+J17 -> $0
A18: Supplies/Commodities
L19: =SUM(F19:K19) -> $0
L20: =SUM(F20:K20) -> $0
L21: $0
L22: $0
L23: $0
A24: Subtotal Supplies | F24: =SUM(F19:G23) -> $0 | H24: =SUM(H19:I23) -> $0 | J24: =SUM(J19:K23) -> $0 | L24: =SUM(F24:K24) -> $0 | M24: =SUM(L19:L23) -> $0
A25: Equipment
L26: =SUM(F26:K26) -> $0
L27: =SUM(F27:K27) -> $0
A28: Subtotal Equipment | F28: =SUM(F26:G27) -> $0 | H28: =SUM(H26:I27) -> $0 | J28: =SUM(J26:K27) -> $0 | L28: =SUM(L26:L27) -> $0 | M28: =F28+H28+J28 -> $0
A29: Travel - list personnel, purpose, destination, and categorical cost calculation
L30: =SUM(F30:K30) -> $0
L31: =SUM(F31:K31) -> $0
L32: $0
A33: Subtotal Travel | F33: =SUM(F30:G32) -> $0 | H33: =SUM(H30:I32) -> $0 | J33: =SUM(J30:K32) -> $0 | L33: =SUM(L30:L32) -> $0 | M33: =F33+H33+J33 -> $0
A34: Contractual - for example: core facility costs, publication
L35: =SUM(F35:K35) -> $0
L36: =SUM(F36:K36) -> $0
L37: $0
L38: $0
A39: Subtotal Contractual | F39: =SUM(F35:G38) -> $0 | H39: =SUM(H35:I38) -> $0 | J39: =SUM(J35:K38) -> $0 | L39: =SUM(L35:L38) -> $0 | M39: =F39+H39+J39 -> $0
A40: Consortium/Subcontract Costs - List each subcontractor separately.
A41: Consortia 1: | C41: Consortia 1 Direct Costs | L41: =SUM(F41:K41) -> $0
A42: Organization | C42: Consortia 1 Indirect Costs | L42: $0
C43: Consortia 1 Total | F43: =SUM(F41:G42) -> $0 | H43: =SUM(H41:I42) -> $0 | J43: =SUM(J41:K42) -> $0 | L43: $0 | M43: =L41+L42 -> $0
C44: MTDC Calculation | F44: =IF(F43>25000,25000,F43) -> $0 | H44: =IF(F43+H43<25000,H43,IF((25000-F43)<0,0,25000-F43)) -> $0 | J44: =IF(F43+H43+J43<25000,J43,IF((25000-(F43+H43))<0,0,25000-(F43+H43))) -> $0 | L44: $0
A45: Consortia 2: | C45: Consortia 2 Direct Costs | L45: $0
A46: Organization | C46: Consortia 2 Indirect Costs | L46: $0
C47: Consortia 2 Total | F47: =SUM(F45:G46) -> $0 | H47: =SUM(H45:I46) -> $0 | J47: =SUM(J45:K46) -> $0 | L47: $0 | M47: =L46+L45 -> $0
C48: MTDC Calculation | F48: =IF(F47>25000,25000,F47) -> $0 | H48: =IF(F47+H47<25000,H47,IF((25000-F47)<0,0,25000-F47)) -> $0 | J48: =IF(F47+H47+J47<25000,J47,IF((25000-(F47+H47))<0,0,25000-(F47+H47))) -> $0 | L48: $0
A49: Consortia 3: | C49: Consortia 3 Direct Costs | L49: $0
A50: Organization | C50: Consortia 3 Indirect Costs | L50: $0
C51: Consortia 3 Total | F51: =SUM(F49:G50) -> $0 | H51: =SUM(H49:I50) -> $0 | J51: =SUM(J49:K50) -> $0 | L51: $0 | M51: =L49+L50 -> $0
C52: MTDC Calculation | F52: =IF(F51>25000,25000,F51) -> $0 | H52: =IF(F51+H51<25000,H51,IF((25000-F51)<0,0,25000-F51)) -> $0 | J52: =IF(F51+H51+J51<25000,J51,IF((25000-(F51+H51))<0,0,25000-(F51+H51))) -> $0 | L52: $0
A53: Subtotal Consortium/Subcontract | F53: =F43+F47+F51 -> $0 | H53: =H43+H47+H51 -> $0 | J53: =J43+J47+J51 -> $0 | L53: =L43+L47+L51 -> $0 | M53: =SUM(F53:K53) -> $0
A54: MTDC Calculation | F54: =F44+F48+F52 -> $0 | H54: =H44+H48+H52 -> $0 | J54: =J44+J48+J52 -> $0 | L54: =F54+H54+J54 -> $0 | M54: =L44+L48+L52 -> $0
A55: Other Costs
L56: =SUM(F56:K56) -> $0
L57: =SUM(F57:K57) -> $0
A58: Subtotal Other Costs | F58: =SUM(F56:G57) -> $0 | H58: =SUM(H56:I57) -> $0 | J58: =SUM(J56:K57) -> $0 | L58: =SUM(L56:L57) -> $0 | M58: =SUM(F58:K58) -> $0
A59: Total Direct Costs | F59: =F17+F24+F28+F33+F39+F58+F53 -> $0 | H59: =H17+H24+H28+H33+H39+H58+H53 -> $0 | J59: =J17+J24+J28+J33+J39+J58+J53 -> $0 | L59: =F59+H59+J59 -> $0 | M59: =L58+L39+L33+L28+L24+L17+L53 -> $0
B60: Total Direct Costs less Consortium IDC² | F60: =F59-F46-F42-F50 -> $0 | H60: =H59-H46-H42-H50 -> $0 | J60: =J59-J46-J42-J50 -> $0 | L60: =L59-L42-L46-L50 -> $0 | M60: =SUM(F60:K60) -> $0
A61: Modified Total Direct Costs (MTDC) | F61: =F58+F54+F39+F33+F24+F17 -> $0 | H61: =H58+H54+H39+H33+H24+H17 -> $0 | J61: =J58+J54+J39+J33+J24+J17 -> $0 | L61: =L58+L54+L39+L33+L24+L17 -> $0 | M61: =SUM(F61:K61) -> $0
A62: Indirects | E62: 48.50% | F62: =F61*E62 -> $0 | H62: =H61*E62 -> $0 | J62: =J61*E62 -> $0 | L62: =L61*E62 -> $0 | M62: =SUM(F62:K62) -> $0
A63: Total Budget Request | F63: =F59+F62 -> $0 | H63: =H59+H62 -> $0 | J63: =J59+J62 -> $0 | L63: =SUM(F63:K63) -> $0 | M63: =L59+L62 -> $0
A65: Contact grants@siumed.edu for assistance or questions.
A67: Federal Budget Notes:
A68: 1) NIH Executive Level II salary cap = $221,900 as of January 1, 2024.
A70: 2) The applicant should not include the consortium partner Indirect Costs (IDC) associated in calculating the $250,000 direct cost level for modular budget eligibility. Consortium IDC may be requested above the normal $250,000 direct cost limits.
A76: Last Updated: 2/23/2024

Sheet 4 Year Worksheet
A1: Southern Illinois University School of Medicine
C2: PI:
C3: App Title:
C4: Agency:
G5: Deadline:
F7: Year 1 | H7: Year 2 | J7: Year 3 | L7: Year 4 | N7: Total Project Costs
A8: Personnel - List all SIU SOM employees with effort on this project. Future year salary increases modified by inflation factor (3%).
A9: Name | D9: % Effort | E9: Academic Base Salary | F9: Salary Requested | G9: Fringes @ 48.4% | H9: Salary Requested | I9: Fringes @ 48.4% | J9: Salary Requested | K9: Fringes @ 48.4% | L9: Salary Requested | M9: Fringes @ 48.4%
F10: =IF(E10>221899.99,(221900*D10),D10*E10) -> $0 | G10: =F10*0.484 -> $0 | H10: =IF(E10>221899.99,F10,IF(E10*1.03>221899.99,(221900*D10),F10*1.03)) -> $0 | I10: =H10*0.484 -> $0 | J10: =IF(E10>221899.99,F10,IF((E10*1.03*1.03)>221899.99,(221900*D10),H10*1.03)) -> $0 | K10: =J10*0.484 -> $0 | L10: =IF(E10>221899.99,F10,IF(E10*1.03*1.03*1.03>221899.99,(221900*D10),J10*1.03)) -> $0 | M10: =L10*0.484 -> $0 | N10: =SUM(F10:M10) -> $0
F11: $0 | G11: =F11*0.484 -> $0 | H11: $0 | I11: =H11*0.484 -> $0 | J11: $0 | K11: =J11*0.484 -> $0 | L11: $0 | M11: =L11*0.484 -> $0 | N11: =SUM(F11:M11) -> $0
F12: $0 | G12: =F12*0.484 -> $0 | H12: $0 | I12: =H12*0.484 -> $0 | J12: $0 | K12: =J12*0.484 -> $0 | L12: $0 | M12: =L12*0.484 -> $0 | N12: $0
F13: $0 | G13: =F13*0.484 -> $0 | H13: $0 | I13: =H13*0.484 -> $0 | J13: $0 | K13: =J13*0.484 -> $0 | L13: $0 | M13: =L13*0.484 -> $0 | N13: $0
A14: POST DOC - 37.5% fringe rate | F14: $0 | G14: =F14*0.375 -> $0 | H14: $0 | I14: =H14*0.375 -> $0 | J14: $0 | K14: =J14*0.375 -> $0 | L14: $0 | M14: =L14*0.375 -> $0 | N14: $0
A15: GRADUATE STUDENT - 50% FTE | F15: $0 | G15: =IF(F15>0,366,0) -> $0 | H15: $0 | I15: =IF(F15>0,376,0) -> $0 | J15: $0 | K15: =IF(F15>0,386,0) -> $0 | L15: $0 | M15: =IF(F15>0,396,0) -> $0 | N15: $0
A16: Subtotal Personnel | F16: =SUM(F10:F15) -> $0 | G16: $0 | H16: $0 | I16: $0 | J16: $0 | K16: $0 | L16: $0 | M16: $0
A17: Total Salary + Fringes | F17: =F16+G16 -> $0 | H17: =H16+I16 -> $0 | J17: =J16+K16 -> $0 | L17: =L16+M16 -> $0 | N17: =SUM(N10:N15) -> $0 | O17: =SUM(F17:M17) -> $0
A18: Supplies/Commodities
N19: =SUM(F19:M19) -> $0
N20: $0
N21: $0
N22: $0
N23: $0
N24: $0
A25: Subtotal Supplies | F25: =SUM(F19:G24) -> $0 | H25: =SUM(H19:I24) -> $0 | J25: =SUM(J19:K24) -> $0 | L25: =SUM(L19:M24) -> $0 | N25: =SUM(N19:N24) -> $0 | O25: =SUM(F25:M25) -> $0
A26: Equipment
N27: =SUM(F27:M27) -> $0
N28: =SUM(F28:M28) -> $0
A29: Subtotal Equipment | F29: =SUM(F27:G28) -> $0 | H29: =SUM(H27:I28) -> $0 | J29: =SUM(J27:K28) -> $0 | L29: =SUM(L27:M28) -> $0 | N29: =SUM(N27:N28) -> $0 | O29: =SUM(F29:M29) -> $0
A30: Travel - list personnel, purpose, destination, and categorical cost calculation
N31: =SUM(F31:M31) -> $0
N32: =SUM(F32:M32) -> $0
N33: =SUM(F33:M33) -> $0
A34: Subtotal Travel | F34: =SUM(F31:G33) -> $0 | H34: =SUM(H31:I33) -> $0 | J34: =SUM(J31:K33) -> $0 | L34: =SUM(L31:M33) -> $0 | N34: =SUM(N31:N33) -> $0 | O34: =SUM(F34:M34) -> $0
A35: Contractual - for example: core facility costs, publication
N36: =SUM(F36:M36) -> $0
N37: =SUM(F37:M37) -> $0
N38: =SUM(F38:M38) -> $0
A39: Subtotal Contractual | F39: =SUM(F36:G38) -> $0 | H39: =SUM(H36:I38) -> $0 | J39: =SUM(J36:K38) -> $0 | L39: =SUM(L36:M38) -> $0 | N39: =SUM(N36:N38) -> $0 | O39: =SUM(F39:M39) -> $0
A40: Consortium/Subcontract Costs - List each subcontractor separately.
A41: Consortia 1: | C41: Consortia 1 Direct Costs | N41: =SUM(F41:M41) -> $0
A42: Organization | C42: Consortia 1 Indirect Costs | N42: $0
C43: Consortia 1 Total | F43: =SUM(F41:G42) -> $0 | H43: =SUM(H41:I42) -> $0 | J43: =SUM(J41:K42) -> $0 | L43: =SUM(L41:M42) -> $0 | N43: =SUM(F43:M43) -> $0 | O43: =N41+N42 -> $0
C44: MTDC Calculation | F44: =IF(F43>25000,25000,F43) -> $0 | H44: =IF(F43+H43<25000,H43,IF((25000-F43)<0,0,25000-F43)) -> $0 | J44: =IF(F43+H43+J43<25000,J43,IF((25000-(F43+H43))<0,0,25000-(F43+H43))) -> $0 | L44: =IF(F43+H43+J43+L43<25000,L43,IF((25000-(F43+H43+J43))<0,0,25000-(F43+H43+J43))) -> $0 | N44: =SUM(F44:M44) -> $0
A45: Consortia 2: | C45: Consortia 2 Direct Costs | N45: $0
A46: Organization | C46: Consortia 2 Indirect Costs | N46: $0
C47: Consortia 2 Total | F47: =SUM(F45:G46) -> $0 | H47: =SUM(H45:I46) -> $0 | J47: =SUM(J45:K46) -> $0 | L47: =SUM(L45:M46) -> $0 | N47: =SUM(F47:M47) -> $0 | O47: =N46+N45 -> $0
C48: MTDC Calculation | F48: =IF(F47>25000,25000,F47) -> $0 | H48: =IF(F47+H47<25000,H47,IF((25000-F47)<0,0,25000-F47)) -> $0 | J48: =IF(F47+H47+J47<25000,J47,IF((25000-(F47+H47))<0,0,25000-(F47+H47))) -> $0 | L48: =IF(F47+H47+J47+L47<25000,L47,IF((25000-(F47+H47+J47))<0,0,25000-(F47+H47+J47))) -> $0 | N48: $0
A49: Consortia 3: | C49: Consortia 3 Direct Costs | N49: $0
A50: Organization | C50: Consortia 3 Indirect Costs | N50: $0
C51: Consortia 3 Total | F51: =SUM(F49:G50) -> $0 | H51: =SUM(H49:I50) -> $0 | J51: =SUM(J49:K50) -> $0 | L51: =SUM(L49:M50) -> $0 | N51: =SUM(F51:M51) -> $0 | O51: =N49+N50 -> $0
C52: MTDC Calculation | F52: =IF(F51>25000,25000,F51) -> $0 | H52: =IF(F51+H51<25000,H51,IF((25000-F51)<0,0,25000-F51)) -> $0 | J52: =IF(F51+H51+J51<25000,J51,IF((25000-(F51+H51))<0,0,25000-(F51+H51))) -> $0 | L52: =IF(F51+H51+J51+L51<25000,L51,IF((25000-(F51+H51+J51))<0,0,25000-(F51+H51+J51))) -> $0 | N52: $0
A53: Subtotal Consortium/Subcontract | F53: =F43+F47+F51 -> $0 | H53: =H43+H47+H51 -> $0 | J53: =J43+J47+J51 -> $0 | L53: =L43+L47+L51 -> $0 | N53: =N43+N47+N51 -> $0 | O53: =SUM(F53:M53) -> $0
A54: MTDC Calculation | F54: =F44+F48+F52 -> $0 | H54: =H44+H48+H52 -> $0 | J54: =J44+J48+J52 -> $0 | L54: =L44+L48+L52 -> $0 | N54: =SUM(F54:M54) -> $0 | O54: =N44+N48+N52 -> $0
A55: Other Costs
N56: =SUM(F56:M56) -> $0
N57: =SUM(F57:M57) -> $0
A58: Subtotal Other Costs | F58: =SUM(F56:G57) -> $0 | H58: =SUM(H56:I57) -> $0 | J58: =SUM(J56:K57) -> $0 | L58: =SUM(L56:M57) -> $0 | N58: =SUM(N56:N57) -> $0 | O58: =SUM(F58:M58) -> $0
A59: Total Direct Costs | F59: =F17+F25+F29+F34+F39+F53+F58 -> $0 | H59: =H17+H25+H29+H34+H39+H53+H58 -> $0 | J59: =J17+J25+J29+J34+J39+J53+J58 -> $0 | L59: =L17+L25+L29+L34+L39+L53+L58 -> $0 | N59: =SUM(F59:M59) -> $0 | O59: =N17+N25+N29+N34+N39+N53+N58 -> $0
A60: Total Direct Costs less Consortium F&A | F60: =F59-F42-F46-F50 -> $0 | H60: =H59-H42-H46-H50 -> $0 | J60: =J59-J42-J46-J50 -> $0 | L60: =L59-L42-L46-L50 -> $0 | N60: =N59-N42-N46-N50 -> $0 | O60: =SUM(F60:M60) -> $0
A61: Modified Total Direct Costs (MTDC)* | F61: =F17+F25+F34+F39+F54+F58 -> $0 | H61: =H17+H25+H34+H39+H54+H58 -> $0 | J61: =J17+J25+J34+J39+J54+J58 -> $0 | L61: =L17+L25+L34+L39+L54+L58 -> $0 | N61: =SUM(F61:M61) -> $0 | O61: =N17+N25+N34+N39+N54+N58 -> $0
A62: Indirects | E62: 48.50% | F62: =F61*E62 -> $0 | H62: =H61*E62 -> $0 | J62: =J61*E62 -> $0 | L62: =L61*E62 -> $0 | N62: =SUM(F62:M62) -> $0 | O62: =O61*E62 -> $0
A63: Total Budget Request | F63: =F59+F62 -> $0 | H63: =H59+H62 -> $0 | J63: =J59+J62 -> $0 | L63: =L59+L62 -> $0 | N63: =SUM(F63:M63) -> $0 | O63: =N59+N62 -> $0
A65: Contact grants@siumed.edu for assistance or questions.
A67: Federal Budget Notes:
A68: 1) NIH Executive Level II salary cap = $221,900 as of January 1, 2024.
A70: 2) The applicant should not include the consortium partner Indirect Costs (IDC) associated in calculating the $250,000 direct cost level for modular budget eligibility. Consortium IDC may be requested above the normal $250,000 direct cost limits.
A76: Last Updated: 2/23/2024

Sheet 5 Year Worksheet
A1: Southern Illinois University School of Medicine
C2: PI:
C3: App Title:
C4: Agency:
G5: Deadline:
F7: Year 1 | H7: Year 2 | J7: Year 3 | L7: Year 4 | N7: Year 5 | P7: Total Project Costs
A8: Personnel - List all SIU SOM employees with effort on this project. Future year salary increases modified by inflation factor (3%).
A9: Name | D9: % Effort | E9: Academic Base Salary | F9: Salary Requested | G9: Fringes @ 48.4% | H9: Salary Requested | I9: Fringes @ 48.4% | J9: Salary Requested | K9: Fringes @ 48.4% | L9: Salary Requested | M9: Fringes @ 48.4% | N9: Salary Requested | O9: Fringes @ 48.4%
F10: =IF(E10>221899.99,(221900*D10),D10*E10) -> $0 | G10: =F10*0.484 -> $0 | H10: =IF(E10>221899.99,F10,IF(E10*1.03>221899.99,(221900*D10),F10*1.03)) -> $0 | I10: =H10*0.484 -> $0 | J10: =IF(E10>221899.99,F10,IF((E10*1.03*1.03)>221899.99,(221900*D10),H10*1.03)) -> $0 | K10: =J10*0.484 -> $0 | L10: =IF(E10>221899.99,F10,IF(E10*1.03*1.03*1.03>221899.99,(221900*D10),J10*1.03)) -> $0 | M10: =L10*0.484 -> $0 | N10: =IF(E10>221899.99,F10,IF(E10*1.03*1.03*1.03*1.03>221899.99,(221900*D10),L10*1.03)) -> $0 | O10: =N10*0.484 -> $0 | P10: =SUM(F10:O10) -> $0
F11: $0 | G11: =F11*0.484 -> $0 | H11: $0 | I11: =H11*0.484 -> $0 | J11: $0 | K11: =J11*0.484 -> $0 | L11: $0 | M11: =L11*0.484 -> $0 | N11: $0 | O11: =N11*0.484 -> $0 | P11: =SUM(F11:O11) -> $0
F12: $0 | G12: =F12*0.484 -> $0 | H12: $0 | I12: =H12*0.484 -> $0 | J12: $0 | K12: =J12*0.484 -> $0 | L12: $0 | M12: =L12*0.484 -> $0 | N12: $0 | O12: =N12*0.484 -> $0 | P12: =SUM(F12:O12) -> $0
F13: $0 | G13: =F13*0.484 -> $0 | H13: $0 | I13: =H13*0.484 -> $0 | J13: $0 | K13: =J13*0.484 -> $0 | L13: $0 | M13: =L13*0.484 -> $0 | N13: $0 | O13: =N13*0.484 -> $0 | P13: =SUM(F13:O13) -> $0
A14: POST DOC - 37.5% fringe rate | F14: $0 | G14: =F14*0.375 -> $0 | H14: $0 | I14: =H14*0.375 -> $0 | J14: $0 | K14: =J14*0.375 -> $0 | L14: $0 | M14: =L14*0.375 -> $0 | N14: $0 | O14: =N14*0.375 -> $0 | P14: =SUM(F14:O14) -> $0
A15: GRADUATE STUDENT - 50% FTE | F15: $0 | G15: =IF(F15>0,366,0) -> $0 | H15: $0 | I15: =IF(F15>0,376,0) -> $0 | J15: $0 | K15: =IF(F15>0,386,0) -> $0 | L15: $0 | M15: =IF(F15>0,396,0) -> $0 | N15: $0 | O15: =IF(F15>0,396,0) -> $0 | P15: $0
A16: Subtotal Personnel | F16: =SUM(F10:F15) -> $0 | G16: $0 | H16: $0 | I16: $0 | J16: =SUM(J10:J15) -> $0 | K16: $0 | L16: $0 | M16: $0 | N16: $0 | O16: $0
A17: Total Salary + Fringes | F17: =F16+G16 -> $0 | H17: =H16+I16 -> $0 | J17: =J16+K16 -> $0 | L17: =L16+M16 -> $0 | N17: =N16+O16 -> $0 | P17: =SUM(P10:P15) -> $0 | Q17: =SUM(F17:O17) -> $0
A18: Supplies/Commodities
P19: =SUM(F19:O19) -> $0
P20: $0
P21: =SUM(F21:O21) -> $0
P22: $0
P23: $0
P24: $0
A25: Subtotal Supplies | F25: =SUM(F19:G24) -> $0 | H25: =SUM(H19:I24) -> $0 | J25: =SUM(J19:K24) -> $0 | L25: =SUM(L19:M24) -> $0 | N25: =SUM(N19:O24) -> $0 | P25: =SUM(P19:P24) -> $0 | Q25: =SUM(F25:O25) -> $0
A26: Equipment
P27: =SUM(F27:O27) -> $0
P28: =SUM(F28:O28) -> $0
A29: Subtotal Equipment | F29: =SUM(F27:G28) -> $0 | H29: =SUM(H27:I28) -> $0 | J29: =SUM(J27:K28) -> $0 | L29: =SUM(L27:M28) -> $0 | N29: =SUM(N27:O28) -> $0 | P29: =SUM(P27:P28) -> $0 | Q29: =SUM(F29:O29) -> $0
A30: Travel - list personnel, purpose, destination, and categorical cost calculation
P31: =SUM(F31:O31) -> $0
P32: =SUM(F32:O32) -> $0
P33: =SUM(F33:O33) -> $0
A34: Subtotal Travel | F34: =SUM(F31:G33) -> $0 | H34: =SUM(H31:I33) -> $0 | J34: =SUM(J31:K33) -> $0 | L34: =SUM(L31:M33) -> $0 | N34: =SUM(N31:O33) -> $0 | P34: =SUM(P31:P33) -> $0 | Q34: =SUM(F34:O34) -> $0
A35: Contractual - for example: core facility costs, publication
P36: =SUM(F36:O36) -> $0
P37: =SUM(F37:O37) -> $0
P38: $0
P39: =SUM(F39:O39) -> $0
P40: =SUM(F40:O40) -> $0
A41: Subtotal Contractual | F41: =SUM(F36:G40) -> $0 | H41: =SUM(H36:I40) -> $0 | J41: =SUM(J36:K40) -> $0 | L41: =SUM(L36:M40) -> $0 | N41: =SUM(N36:O40) -> $0 | P41: =SUM(P36:P40) -> $0 | Q41: =SUM(F41:O41) -> $0
A42: Consortium/Subcontract Costs - List each subcontractor separately.
A43: Consortia 1: | C43: Consortia 1 Direct Costs | P43: =SUM(F43:O43) -> $0
A44: Organization | C44: Consortia 1 Indirect Costs | P44: $0
C45: Consortia 1 Total | F45: =SUM(F43:G44) -> $0 | H45: =SUM(H43:I44) -> $0 | J45: =SUM(J43:K44) -> $0 | L45: =SUM(L43:M44) -> $0 | N45: =SUM(N43:O44) -> $0 | P45: $0 | Q45: =P43+P44 -> $0
C46: MTDC Calculation | F46: =IF(F45>25000,25000,F45) -> $0 | H46: =IF(F45+H45<25000,H45,IF((25000-F45)<0,0,25000-F45)) -> $0 | J46: =IF(F45+H45+J45<25000,J45,IF((25000-(F45+H45))<0,0,25000-(F45+H45))) -> $0 | L46: =IF(F45+H45+J45+L45<25000,L45,IF((25000-(F45+H45+J45))<0,0,25000-(F45+H45+J45))) -> $0 | N46: =IF(F45+H45+J45+L45+N45<25000,N45,IF((25000-(F45+H45+J45+L45))<0,0,25000-(F45+H45+J45+L45))) -> $0 | P46: =SUM(F46:O46) -> $0
A47: Consortia 2: | C47: Consortia 2 Direct Costs | P47: $0
A48: Organization | C48: Consortia 2 Indirect Costs | P48: $0
C49: Consortia 2 Total | F49: =SUM(F47:G48) -> $0 | H49: =SUM(H47:I48) -> $0 | J49: =SUM(J47:K48) -> $0 | L49: =SUM(L47:M48) -> $0 | N49: =SUM(N47:O48) -> $0 | P49: $0 | Q49: =P48+P47 -> $0
C50: MTDC Calculation | F50: =IF(F49>25000,25000,F49) -> $0 | H50: =IF(F49+H49<25000,H49,IF((25000-F49)<0,0,25000-F49)) -> $0 | J50: =IF(F49+H49+J49<25000,J49,IF((25000-(F49+H49))<0,0,25000-(F49+H49))) -> $0 | L50: =IF(F49+H49+J49+L49<25000,L49,IF((25000-(F49+H49+J49))<0,0,25000-(F49+H49+J49))) -> $0 | N50: =IF(F49+H49+J49+L49+N49<25000,N49,IF((25000-(F49+H49+J49+L49))<0,0,25000-(F49+H49+J49+L49))) -> $0 | P50: =SUM(F50:O50) -> $0
A51: Consortia 3: | C51: Consortia 3 Direct Costs | P51: $0
A52: Organization | C52: Consortia 3 Indirect Costs | P52: $0
C53: Consortia 3 Total | F53: =SUM(F51:G52) -> $0 | H53: =SUM(H51:I52) -> $0 | J53: =SUM(J51:K52) -> $0 | L53: =SUM(L51:M52) -> $0 | N53: =SUM(N51:O52) -> $0 | P53: $0 | Q53: =P51+P52 -> $0
C54: MTDC Calculation | F54: =IF(F53>25000,25000,F53) -> $0 | H54: =IF(F53+H53<25000,H53,IF((25000-F53)<0,0,25000-F53)) -> $0 | J54: =IF(F53+H53+J53<25000,J53,IF((25000-(F53+H53))<0,0,25000-(F53+H53))) -> $0 | L54: =IF(F53+H53+J53+L53<25000,L53,IF((25000-(F53+H53+J53))<0,0,25000-(F53+H53+J53))) -> $0 | N54: =IF(F53+H53+J53+L53+N53<25000,N53,IF((25000-(F53+H53+J53+L53))<0,0,25000-(F53+H53+J53+L53))) -> $0 | P54: =SUM(F54:O54) -> $0
A55: Subtotal Consortium/Subcontract | F55: =F45+F49+F53 -> $0 | H55: =H45+H49+H53 -> $0 | J55: =J45+J49+J53 -> $0 | L55: =L45+L49+L53 -> $0 | N55: =N45+N49+N53 -> $0 | P55: =P45+P49+P53 -> $0 | Q55: =SUM(F55:O55) -> $0
A56: MTDC Calculation | F56: =F46+F50+F54 -> $0 | H56: =H46+H50+H54 -> $0 | J56: =J46+J50+J54 -> $0 | L56: =L46+L50+L54 -> $0 | N56: =N46+N50+N54 -> $0 | P56: =SUM(F56:O56) -> $0 | Q56: =P46+P50+P54 -> $0
A57: Other Costs
P58: =SUM(F58:O58) -> $0
P59: =SUM(F59:O59) -> $0
P60: $0
P61: =SUM(F61:O61) -> $0
A62: Subtotal Other Costs | F62: =SUM(F58:G61) -> $0 | H62: =SUM(H58:I61) -> $0 | J62: =SUM(J58:K61) -> $0 | L62: =SUM(L58:M61) -> $0 | N62: =SUM(N58:O61) -> $0 | P62: =SUM(P58:P61) -> $0 | Q62: =SUM(F62:O62) -> $0
A63: Total Direct Costs | F63: =F17+F25+F29+F34+F41+F55+F62 -> $0 | H63: =H17+H25+H29+H34+H41+H55+H62 -> $0 | J63: =J17+J25+J29+J34+J41+J55+J62 -> $0 | L63: =L17+L25+L29+L34+L41+L55+L62 -> $0 | N63: =N17+N25+N29+N34+N41+N55+N62 -> $0 | P63: =SUM(F63:O63) -> $0 | Q63: =P17+P25+P29+P34+P41+P55+P62 -> $0
A64: Total Direct Costs less Consortium F&A | F64: =F63-F44-F48-F52 -> $0 | H64: =H63-H44-H48-H52 -> $0 | J64: =J63-J44-J48-J52 -> $0 | L64: =L63-L44-L48-L52 -> $0 | N64: =N63-N44-N48-N52 -> $0 | P64: =P63-P44-P48-P52 -> $0 | Q64: =SUM(F64:O64) -> $0
A65: Modified Total Direct Costs (MTDC)* | F65: =F17+F25+F34+F41+F56+F62 -> $0 | H65: =H17+H25+H34+H41+H56+H62 -> $0 | J65: =J17+J25+J34+J41+J56+J62 -> $0 | L65: =L17+L25+L34+L41+L56+L62 -> $0 | N65: =N17+N25+N34+N41+N56+N62 -> $0 | P65: =SUM(F65:O65) -> $0 | Q65: =P17+P25+P34+P41+P56+P62 -> $0
A66: Indirects | E66: 48.50% | F66: =F65*E66 -> $0 | H66: =H65*E66 -> $0 | J66: =J65*E66 -> $0 | L66: =L65*E66 -> $0 | N66: =N65*E66 -> $0 | P66: =SUM(F66:O66) -> $0 | Q66: =Q65*E66 -> $0
A67: Total Budget Request | F67: =F63+F66 -> $0 | H67: =H63+H66 -> $0 | J67: =J63+J66 -> $0 | L67: =L63+L66 -> $0 | N67: =N63+N66 -> $0 | P67: =SUM(F67:O67) -> $0 | Q67: =P63+P66 -> $0
A69: Contact grants@siumed.edu for assistance or questions.
A71: Federal Budget Notes:
A72: 1) NIH Executive Level II salary cap = $221,900 as of January 1, 2024.
A74: 2) The applicant should not include the consortium partner Indirect Costs (IDC) associated in calculating the $250,000 direct cost level for modular budget eligibility. Consortium IDC may be requested above the normal $250,000 direct cost limits.
A80: Last Updated: 2/23/2024

Sheet Sample
A1: Southern Illinois University School of Medicine
C2: PI: | D2: Principal Investigator, PhD, MD
C3: App Title: | D3: Full Application Title
C4: Agency: | D4: NIH
G5: Deadline: | H5: 2030-01-01
F7: Year 1 | H7: Year 2 | J7: Year 3 | L7: Year 4 | N7: Year 5 | P7: Total Project Costs
A8: Personnel - List all SIU SOM employees with effort on this project. Future year salary increases modified by inflation factor (3%). Individuals at the NIH cap cannot include inflation increases.
A9: Name | D9: % Effort | E9: Academic Base Salary | F9: Salary Requested | G9: Fringes @ 48.4% | H9: Salary Requested | I9: Fringes @ 48.4% | J9: Salary Requested | K9: Fringes @ 48.4% | L9: Salary Requested | M9: Fringes @ 48.4% | N9: Salary Requested | O9: Fringes @ 48.4%
A10: Principal Investigator (PI) | D10: 20% | E10: $250,000 | F10: =IF(E10>221899.99,(221900*D10),D10*E10) -> $44,380 | G10: =F10*0.484 -> $21,480 | H10: =IF(E10>221899.99,F10,IF(E10*1.03>221899.99,(221900*D10),F10*1.03)) -> $44,380 | I10: =H10*0.484 -> $21,480 | J10: =IF(E10>221899.99,F10,IF((E10*1.03*1.03)>221899.99,(221900*D10),H10*1.03)) -> $44,380 | K10: =J10*0.484 -> $21,480 | L10: =IF(E10>221899.99,F10,IF(E10*1.03*1.03*1.03>221899.99,(221900*D10),J10*1.03)) -> $44,380 | M10: =L10*0.484 -> $21,480 | N10: =IF(E10>221899.99,F10,IF(E10*1.03*1.03*1.03*1.03>221899.99,(221900*D10),L10*1.03)) -> $44,380 | O10: =N10*0.484 -> $21,480 | P10: =SUM(F10:O10) -> $329,300
A11: Co-PI | D11: 20% | E11: $180,000 | F11: $36,000 | G11: =F11*0.484 -> $17,424 | H11: =IF(E11>221899.99,F11,IF(E11*1.03>221899.99,(221900*D11),F11*1.03)) -> $37,080 | I11: =H11*0.484 -> $17,947 | J11: $38,192 | K11: =J11*0.484 -> $18,485 | L11: $39,338 | M11: =L11*0.484 -> $19,040 | N11: $40,518 | O11: =N11*0.484 -> $19,611 | P11: $283,635
A12: Co-Investigator | D12: 10% | E12: $80,000 | F12: $8,000 | G12: =F12*0.484 -> $3,872 | H12: =IF(E12>221899.99,F12,IF(E12*1.03>221899.99,(221900*D12),F12*1.03)) -> $8,240 | I12: =H12*0.484 -> $3,988 | J12: $8,487 | K12: =J12*0.484 -> $4,108 | L12: $8,742 | M12: =L12*0.484 -> $4,231 | N12: $9,004 | O12: =N12*0.484 -> $4,358 | P12: $63,030
A13: Researcher IV | D13: 10% | E13: $45,000 | F13: $4,500 | G13: =F13*0.484 -> $2,178 | H13: =IF(E13>221899.99,F13,IF(E13*1.03>221899.99,(221900*D13),F13*1.03)) -> $4,635 | I13: =H13*0.484 -> $2,243 | J13: $4,774 | K13: =J13*0.484 -> $2,311 | L13: $4,917 | M13: =L13*0.484 -> $2,380 | N13: $5,065 | O13: =N13*0.484 -> $2,451 | P13: $35,454
A14: Study Coordinator | D14: 40% | E14: $65,000 | F14: $26,000 | G14: =F14*0.484 -> $12,584 | H14: =IF(E14>221899.99,F14,IF(E14*D14*1.03>221899.99,(221900*D14),F14*1.03)) -> $26,780 | I14: =H14*0.484 -> $12,962 | J14: $27,583 | K14: =J14*0.484 -> $13,350 | L14: $28,411 | M14: =L14*0.484 -> $13,751 | N14: $29,263 | O14: =N14*0.484 -> $14,163 | P14: $204,848
A15: POST DOC - 37.5% fringe rate | D15: 10% | E15: $45,000 | F15: $4,500 | G15: =F15*0.375 -> $1,688 | H15: =IF(E15>221899.99,F15,IF(E15*1.03>221899.99,(221900*D15),F15*1.03)) -> $4,635 | I15: =H15*0.375 -> $1,738 | J15: $4,774 | K15: =J15*0.375 -> $1,790 | L15: $4,917 | M15: =L15*0.375 -> $1,844 | N15: $5,065 | O15: =N15*0.375 -> $1,899 | P15: $32,850
A16: GRADUATE STUDENT - 50% FTE | D16: 100% | E16: $20,664 | F16: $20,664 | G16: =IF(F16>0,366,0) -> $366 | H16: =IF(E16>221899.99,F16,IF(E16*1.03>221899.99,(221900*D16),F16*1.03)) -> $21,284 | I16: =IF(F16>0,376,0) -> $376 | J16: $21,922 | K16: =IF(F16>0,386,0) -> $386 | L16: $22,580 | M16: =IF(F16>0,396,0) -> $396 | N16: $23,258 | O16: =IF(F16>0,396,0) -> $396 | P16: $111,628
A17: Subtotal Personnel | F17: =SUM(F10:F16) -> $144,044 | G17: $59,591 | H17: $147,034 | I17: $60,734 | J17: $150,114 | K17: $61,910 | L17: $153,286 | M17: $63,121 | N17: $156,553 | O17: $64,359
A18: Total Salary + Fringes | F18: =F17+G17 -> $203,635 | H18: =H17+I17 -> $207,768 | J18: =J17+K17 -> $212,024 | L18: =L17+M17 -> $216,407 | N18: =N17+O17 -> $220,912 | P18: =SUM(P10:P16) -> $1,060,745
A19: Supplies/Commodities
A20: Glassware | F20: $3,000 | H20: $3,000 | J20: $3,000 | L20: $3,000 | N20: $3,000 | P20: =SUM(F20:O20) -> $15,000
A21: Animal costs | F21: $5,000 | H21: $5,000 | J21: $5,000 | L21: $5,000 | N21: $5,000 | P21: $25,000
A22: Chemicals and reagents | F22: $7,000 | H22: $7,000 | J22: $7,000 | L22: $5,000 | N22: $5,000 | P22: $31,000
P23: $0
P24: $0
P25: $0
A26: Subtotal Supplies | F26: =SUM(F20:G25) -> $15,000 | H26: =SUM(H20:I25) -> $15,000 | J26: =SUM(J20:K25) -> $15,000 | L26: =SUM(L20:M25) -> $13,000 | N26: =SUM(N20:O25) -> $13,000 | P26: =SUM(P20:P25) -> $71,000
A27: Equipment
A28: Freezer | F28: $7,000 | P28: =SUM(F28:O28) -> $7,000
P29: =SUM(F29:O29) -> $0
P30: =SUM(F30:O30) -> $0
A31: Subtotal Equipment | F31: =SUM(F28:G30) -> $7,000 | H31: =SUM(H28:I30) -> $0 | J31: =SUM(J28:K30) -> $0 | L31: =SUM(L28:M30) -> $0 | N31: =SUM(N28:O30) -> $0 | P31: =SUM(P28:P30) -> $7,000
A32: Travel - list personnel, purpose, destination, and categorical cost calculation
A33: National Research Conference (PI, Atlanta, GA) | J33: $4,000 | L33: $4,200 | N33: $5,300 | P33: =SUM(F33:O33) -> $13,500
A34: Conference registration fees (PI, Co-PI, annual meeting) | J34: $1,800 | L34: $2,000 | N34: $2,400 | P34: =SUM(F34:O34) -> $6,200
P35: =SUM(F35:O35) -> $0
A36: Subtotal Travel | F36: =SUM(F33:G35) -> $0 | H36: =SUM(H33:I35) -> $0 | J36: =SUM(J33:K35) -> $5,800 | L36: =SUM(L33:M35) -> $6,200 | N36: =SUM(N33:O35) -> $7,700 | P36: =SUM(P33:P35) -> $19,700
A37: Contractual - for example: core facility costs, publication
A38: Center for Clinical Research (Stats) | H38: =100*80 -> $8,000 | J38: =150*80 -> $12,000 | L38: =200*80 -> $16,000 | N38: =100*80 -> $8,000 | P38: =SUM(F38:O38) -> $44,000
A39: Flow Cytometry | F39: $5,000 | H39: $5,150 | P39: =SUM(F39:O39) -> $10,150
A40: Publications | H40: $2,000 | J40: $2,000 | L40: $2,000 | N40: $2,000 | P40: =SUM(F40:O40) -> $8,000
A41: Subtotal Contractual | F41: =SUM(F38:G40) -> $5,000 | H41: =SUM(H38:I40) -> $15,150 | J41: =SUM(J38:K40) -> $14,000 | L41: =SUM(L38:M40) -> $18,000 | N41: =SUM(N38:O40) -> $10,000 | P41: =SUM(P38:P40) -> $62,150
A42: Consortium/Subcontract Costs - list each subcontractor separately
A43: Consortia 1: | C43: Consortia 1 Direct Costs | F43: $15,000 | H43: $2,000 | J43: $6,000 | L43: $2,000 | N43: $2,000 | P43: =SUM(F43:O43) -> $27,000
A44: University of Illinois | C44: Consortia 1 Indirect Costs | F44: $4,500 | H44: $600 | J44: $1,800 | L44: $600 | N44: $600 | P44: $8,100
C45: Consortia 1 Total | F45: =SUM(F43:G44) -> $19,500 | H45: =SUM(H43:I44) -> $2,600 | J45: =SUM(J43:K44) -> $7,800 | L45: =SUM(L43:M44) -> $2,600 | N45: =SUM(N43:O44) -> $2,600 | P45: $35,100
C46: MTDC Calculation | F46: =IF(F45>25000,25000,F45) -> $19,500 | H46: =IF(F45+H45<25000,H45,IF((25000-F45)<0,0,25000-F45)) -> $2,600 | J46: =IF(F45+H45+J45<25000,J45,IF((25000-(F45+H45))<0,0,25000-(F45+H45))) -> $2,900 | L46: =IF(F45+H45+J45+L45<25000,L45,IF((25000-(F45+H45+J45))<0,0,25000-(F45+H45+J45))) -> $0 | N46: =IF(F45+H45+J45+L45+N45<25000,N45,IF((25000-(F45+H45+J45+L45))<0,0,25000-(F45+H45+J45+L45))) -> $0 | P46: $25,000
A47: Consortia 2: | C47: Consortia 2 Direct Costs | F47: $35,000 | H47: $10,000 | J47: $20,000 | L47: $10,000 | N47: $10,000 | P47: $85,000
A48: University of California | C48: Consortia 2 Indirect Costs | F48: $5,250 | H48: $1,500 | J48: $3,000 | L48: $1,500 | N48: $1,500 | P48: $12,750
C49: Consortia 2 Total | F49: =SUM(F47:G48) -> $40,250 | H49: =SUM(H47:I48) -> $11,500 | J49: =SUM(J47:K48) -> $23,000 | L49: =SUM(L47:M48) -> $11,500 | N49: =SUM(N47:O48) -> $11,500 | P49: =SUM(F49:O49) -> $97,750
C50: MTDC Calculation | F50: =IF(F49>25000,25000,F49) -> $25,000 | H50: =IF(F49+H49<25000,H49,IF((25000-F49)<0,0,25000-F49)) -> $0 | J50: =IF(F49+H49+J49<25000,J49,IF((25000-(F49+H49))<0,0,25000-(F49+H49))) -> $0 | L50: =IF(F49+H49+J49+L49<25000,L49,IF((25000-(F49+H49+J49))<0,0,25000-(F49+H49+J49))) -> $0 | N50: =IF(F49+H49+J49+L49+N49<25000,N49,IF((25000-(F49+H49+J49+L49))<0,0,25000-(F49+H49+J49+L49))) -> $0 | P50: $25,000
A51: Consortia 3: | C51: Consortia 3 Direct Costs | P51: $0
A52: Organization | C52: Consortia 3 Indirect Costs | P52: $0
C53: Consortia 3 Total | F53: =SUM(F51:G52) -> $0 | H53: =SUM(H51:I52) -> $0 | J53: =SUM(J51:K52) -> $0 | L53: =SUM(L51:M52) -> $0 | N53: =SUM(N51:O52) -> $0 | P53: $0
C54: MTDC Calculation | F54: =IF(F53>25000,25000,F53) -> $0 | H54: =IF(F53+H53<25000,H53,IF((25000-F53)<0,0,25000-F53)) -> $0 | J54: =IF(F53+H53+J53<25000,J53,IF((25000-(F53+H53))<0,0,25000-(F53+H53))) -> $0 | L54: =IF(F53+H53+J53+L53<25000,L53,IF((25000-(F53+H53+J53))<0,0,25000-(F53+H53+J53))) -> $0 | N54: =IF(F53+H53+J53+L53+N53<25000,N53,IF((25000-(F53+H53+J53+L53))<0,0,25000-(F53+H53+J53+L53))) -> $0 | P54: $0
A55: Subtotal Consortium/Subcontract | F55: =F45+F49+F53 -> $59,750 | H55: =H45+H49+H53 -> $14,100 | J55: =J45+J49+J53 -> $30,800 | L55: =L45+L49+L53 -> $14,100 | N55: =N45+N49+N53 -> $14,100 | P55: =P45+P49+P54 -> $132,850
A56: MTDC Calculation | F56: =F46+F50+F54 -> $44,500 | H56: =H46+H50+H54 -> $2,600 | J56: =J46+J50+J54 -> $2,900 | L56: =L46+L50+L54 -> $0 | N56: =N46+N50+N54 -> $0 | P56: =SUM(F56:O56) -> $50,000
A57: Other Costs
P58: =SUM(F58:O58) -> $0
P59: =SUM(F59:O59) -> $0
A60: Subtotal Other Costs | F60: =SUM(F58:G59) -> $0 | H60: =SUM(H58:I59) -> $0 | J60: =SUM(J58:K59) -> $0 | L60: =SUM(L58:M59) -> $0 | N60: =SUM(N58:O59) -> $0 | P60: =SUM(P58:P59) -> $0
A61: Total Direct Costs | F61: =F18+F26+F31+F36+F41+F55+F60 -> $290,385 | H61: =H18+H26+H31+H36+H41+H55+H60 -> $252,018 | J61: =J18+J26+J31+J36+J41+J55+J60 -> $277,624 | L61: =L18+L26+L31+L36+L41+L55+L60 -> $267,707 | N61: =N18+N26+N31+N36+N41+N55+N60 -> $265,712 | P61: =SUM(F61:O61) -> $1,353,445 | Q61: =P18+P26+P31+P36+P41+P55+P60 -> 1,353,445
A62: Total Direct Costs less Consortium F&A | F62: =F61-F44-F48-F52 -> $280,635 | H62: =H61-H44-H48-H52 -> $249,918 | J62: =J61-J44-J48-J52 -> $272,824 | L62: =L61-L44-L48-L52 -> $265,607 | N62: =N61-N44-N48-N52 -> $263,612 | P62: =P61-P44-P48-P52 -> $1,332,595 | Q62: =SUM(F62:O62) -> 1,332,595
A63: Modified Total Direct Costs (MTDC)* | F63: =F18+F26+F36+F41+F56+F60 -> $268,135 | H63: =H18+H26+H36+H41+H56+H60 -> $240,518 | J63: =J18+J26+J36+J41+J56+J60 -> $249,724 | L63: =L18+L26+L36+L41+L56+L60 -> $253,607 | N63: =N18+N26+N36+N41+N56+N60 -> $251,612 | P63: =SUM(F63:O63) -> $1,263,595 | Q63: =P60+P56+P41+P36+P26+P18 -> 1,263,595
A64: Indirects | E64: 48.50% | F64: =F63*E64 -> $130,046 | H64: =H63*E64 -> $116,651 | J64: =J63*E64 -> $121,116 | L64: =L63*E64 -> $122,999 | N64: =N63*E64 -> $122,032 | P64: =SUM(F64:O64) -> $612,844 | Q64: =P63*E64 -> 612,844
A65: Total Budget Request | F65: =F61+F64 -> $420,431 | H65: =H61+H64 -> $368,669 | J65: =J61+J64 -> $398,740 | L65: =L61+L64 -> $390,706 | N65: =N61+N64 -> $387,743 | P65: =SUM(F65:O65) -> $1,966,289 | Q65: =Q61+Q64 -> 1,966,289
A67: Contact grants@siumed.edu for assistance or questions.
A69: Federal Budget Notes:
A70: 1) NIH Executive Level II salary cap = $221,900 as of January 1, 2024.
A72: 2) The applicant should not include the consortium partner Indirect Costs (IDC) associated in calculating the $250,000 direct cost level for modular budget eligibility. Consortium IDC may be requested above the normal $250,000 direct cost limits.
A78: Last Updated: 2/23/2024
